[Event "*** Titled Tuesday 3|2 Blitz"]
[Site "Chess.com"]
[Date "2015.06.02"]
[Round "1"]
[White "Tal-Baronfew"]
[Black "MartinZumsande"]
[Result "1-0"]
[WhiteElo "2297"]
[BlackElo "2330"]
[TimeControl "180+2"]
[EndTime "11:10:02 PDT"]
[Termination "Tal-Baronfew won by checkmate"]

1. d4 {[%clk 0:02:56.7]} 1... d5 {[%clk 0:03:00.5]} 2. c4 {[%clk 0:02:55.2]}
2... c6 {[%clk 0:03:01.3]} 3. e3 {[%clk 0:02:56.4]} 3... Nf6 {[%clk 0:03:00.6]}
4. Bd3 {[%clk 0:02:57.2]} 4... g6 {[%clk 0:02:57.5]} 5. Nf3 {[%clk 0:02:57.4]}
5... Bg7 {[%clk 0:02:58.1]} 6. O-O {[%clk 0:02:58.4]} 6... Bg4 {[%clk
0:02:57.2]} 7. Nc3 {[%clk 0:02:57.3]} 7... O-O {[%clk 0:02:55.7]} 8. h3 {[%clk
0:02:58.7]} 8... Bxf3 {[%clk 0:02:55.6]} 9. Qxf3 {[%clk 0:03:00.6]} 9... Nbd7
{[%clk 0:02:56.1]} 10. Rd1 {[%clk 0:03:02.1]} 10... e6 {[%clk 0:02:48.8]} 11. b3
{[%clk 0:03:02.4]} 11... Rc8 {[%clk 0:02:48.9]} 12. Bb2 {[%clk 0:02:56.5]} 12...
Qa5 {[%clk 0:02:41.9]} 13. Qe2 {[%clk 0:02:56.3]} 13... Rfd8 {[%clk 0:02:41.3]}
14. a3 {[%clk 0:02:54.8]} 14... c5 {[%clk 0:02:36.8]} 15. b4 {[%clk 0:02:33.1]}
15... cxb4 {[%clk 0:02:37.4]} 16. axb4 {[%clk 0:02:33.7]} 16... Qxb4 {[%clk
0:02:38.2]} 17. c5 {[%clk 0:02:35]} 17... Ne4 {[%clk 0:02:26.4]} 18. Nxe4 {[%clk
0:02:01]} 18... dxe4 {[%clk 0:02:25.4]} 19. Bxe4 {[%clk 0:02:02.9]} 19... b6
{[%clk 0:01:52.9]} 20. Ba3 {[%clk 0:01:53.4]} 20... Qa5 {[%clk 0:01:46]} 21. c6
{[%clk 0:01:52.2]} 21... Nf6 {[%clk 0:01:45.6]} 22. Be7 {[%clk 0:01:51.5]} 22...
Qc3 {[%clk 0:01:31.6]} 23. Rdc1 {[%clk 0:01:42.7]} 23... Qb3 {[%clk 0:01:16.5]}
24. Rcb1 {[%clk 0:01:30.3]} 24... Qc3 {[%clk 0:01:10.1]} 25. Rc1 {[%clk
0:01:29.3]} 25... Qb3 {[%clk 0:01:09.7]} 26. Ra3 {[%clk 0:01:26.3]} 26... Qxa3
{[%clk 0:00:49.1]} 27. Bxa3 {[%clk 0:01:28]} 27... Nxe4 {[%clk 0:00:50.7]} 28.
f3 {[%clk 0:01:26.9]} 28... Nf6 {[%clk 0:00:50.5]} 29. Qa6 {[%clk 0:01:27.1]}
29... Nd5 {[%clk 0:00:47.1]} 30. Qxa7 {[%clk 0:01:18.8]} 30... Nxe3 {[%clk
0:00:47.9]} 31. Be7 {[%clk 0:01:06.2]} 31... Re8 {[%clk 0:00:46.6]} 32. Qd7
{[%clk 0:01:05.2]} 32... Nd5 {[%clk 0:00:44.3]} 33. Bh4 {[%clk 0:00:59.1]} 33...
Bxd4+ {[%clk 0:00:43.4]} 34. Kh1 {[%clk 0:00:58.9]} 34... Bc5 {[%clk 0:00:36.8]}
35. Ra1 {[%clk 0:00:48]} 35... b5 {[%clk 0:00:21.6]} 36. Ra5 {[%clk 0:00:48.8]}
36... Nc7 {[%clk 0:00:18.1]} 37. Bg3 {[%clk 0:00:47.1]} 37... Bb6 {[%clk
0:00:19.4]} 38. Ra1 {[%clk 0:00:46.1]} 38... Nd5 {[%clk 0:00:20.1]} 39. h4
{[%clk 0:00:39.3]} 39... b4 {[%clk 0:00:21.4]} 40. h5 {[%clk 0:00:40.3]} 40...
gxh5 {[%clk 0:00:21.8]} 41. Be5 {[%clk 0:00:41.5]} 41... b3 {[%clk 0:00:19.6]}
42. Rb1 {[%clk 0:00:42.1]} 42... Red8 {[%clk 0:00:19.3]} 43. Qb7 {[%clk
0:00:41.4]} 43... Nb4 {[%clk 0:00:19.8]} 44. Qxb6 {[%clk 0:00:40.6]} 44... Nxc6
{[%clk 0:00:21.2]} 45. Bb2 {[%clk 0:00:40.7]} 45... Rd2 {[%clk 0:00:20.1]} 46.
Qb7 {[%clk 0:00:39.3]} 46... Rdd8 {[%clk 0:00:18.5]} 47. Qb5 {[%clk 0:00:40.3]}
47... Rd5 {[%clk 0:00:19]} 48. Qa6 {[%clk 0:00:40.3]} 48... Rc7 {[%clk
0:00:19.3]} 49. Qa8+ {[%clk 0:00:35.4]} 49... Rd8 {[%clk 0:00:19.6]} 50. Qa4
{[%clk 0:00:32.6]} 50... Rb8 {[%clk 0:00:20.4]} 51. Qh4 {[%clk 0:00:33]} 51...
Kf8 {[%clk 0:00:20.8]} 52. Qg3 {[%clk 0:00:31.2]} 52... Rbb7 {[%clk 0:00:21.3]}
53. Qg7+ {[%clk 0:00:31.2]} 53... Ke8 {[%clk 0:00:21.9]} 54. Qh8+ {[%clk
0:00:29.9]} 54... Ke7 {[%clk 0:00:23.2]} 55. Bf6+ {[%clk 0:00:30.6]} 55... Kd6
{[%clk 0:00:24]} 56. Qf8+ {[%clk 0:00:30.6]} 56... Kd5 {[%clk 0:00:25]} 57. Rd1+
{[%clk 0:00:29.3]} 57... Kc4 {[%clk 0:00:26.1]} 58. Rc1+ {[%clk 0:00:30.2]}
58... Kd3 {[%clk 0:00:26.9]} 59. Qd6+ {[%clk 0:00:31.2]} 59... Ke2 {[%clk
0:00:27.3]} 60. Qd1+ {[%clk 0:00:28.9]} 60... Ke3 {[%clk 0:00:28.6]} 61. Qe1+
{[%clk 0:00:30.1]} 61... Kd3 {[%clk 0:00:29.1]} 62. Rc3# {[%clk 0:00:28.2]} 1-0

[Event "*** Titled Tuesday 3|2 Blitz"]
[Site "Chess.com"]
[Date "2015.06.02"]
[Round "1"]
[White "Carolina-moon"]
[Black "Cryptochess"]
[Result "0-1"]
[WhiteElo "1989"]
[BlackElo "2364"]
[TimeControl "180+2"]
[EndTime "11:10:08 PDT"]
[Termination "Cryptochess won by checkmate"]

1. e4 {[%clk 0:02:56.6]} 1... d6 {[%clk 0:03:01]} 2. d4 {[%clk 0:02:53.9]} 2...
Nf6 {[%clk 0:03:02.4]} 3. Nc3 {[%clk 0:02:53.8]} 3... g6 {[%clk 0:03:01.6]} 4.
Bg5 {[%clk 0:02:54.4]} 4... Bg7 {[%clk 0:03:02.2]} 5. e5 {[%clk 0:02:54.7]} 5...
dxe5 {[%clk 0:03:02.6]} 6. dxe5 {[%clk 0:02:55.2]} 6... Ng4 {[%clk 0:03:04.1]}
7. Qxd8+ {[%clk 0:02:54.5]} 7... Kxd8 {[%clk 0:03:06]} 8. Rd1+ {[%clk
0:02:51.3]} 8... Bd7 {[%clk 0:03:07]} 9. e6 {[%clk 0:02:52.1]} 9... fxe6 {[%clk
0:03:08.9]} 10. Bc4 {[%clk 0:02:50.8]} 10... Ke8 {[%clk 0:03:05.5]} 11. Nf3
{[%clk 0:02:51.7]} 11... Nc6 {[%clk 0:02:55.2]} 12. O-O {[%clk 0:02:48.3]} 12...
Nge5 {[%clk 0:02:52.9]} 13. Nxe5 {[%clk 0:02:45.1]} 13... Nxe5 {[%clk
0:02:52.2]} 14. Bb3 {[%clk 0:02:44]} 14... Nf7 {[%clk 0:02:47.7]} 15. Bh4 {[%clk
0:02:33.2]} 15... Nd6 {[%clk 0:02:33.8]} 16. Rfe1 {[%clk 0:02:28.4]} 16... Bxc3
{[%clk 0:02:23.2]} 17. bxc3 {[%clk 0:02:28.3]} 17... Kf7 {[%clk 0:02:17]} 18.
Rd3 {[%clk 0:02:11.4]} 18... h5 {[%clk 0:01:51]} 19. Rf3+ {[%clk 0:01:48.2]}
19... Nf5 {[%clk 0:01:49.6]} 20. Bg3 {[%clk 0:01:44.3]} 20... c5 {[%clk
0:01:42.2]} 21. Be5 {[%clk 0:01:43.9]} 21... Rhd8 {[%clk 0:01:40]} 22. h3 {[%clk
0:01:36.5]} 22... Bc6 {[%clk 0:01:26.6]} 23. Rf4 {[%clk 0:01:33.1]} 23... b5
{[%clk 0:01:07.3]} 24. Bc7 {[%clk 0:01:26.5]} 24... c4 {[%clk 0:01:07.8]} 25.
Bxc4 {[%clk 0:01:17.6]} 25... bxc4 {[%clk 0:01:05.7]} 26. Bxd8 {[%clk
0:01:18.2]} 26... Rxd8 {[%clk 0:01:06.4]} 27. Rxc4 {[%clk 0:01:14.8]} 27... Bd5
{[%clk 0:01:03.7]} 28. Ra4 {[%clk 0:01:13.4]} 28... Rc8 {[%clk 0:01:00.7]} 29.
Rxa7 {[%clk 0:01:11.6]} 29... Rxc3 {[%clk 0:01:01.5]} 30. Re2 {[%clk 0:01:11.4]}
30... Nd4 {[%clk 0:00:56.6]} 31. Rd2 {[%clk 0:01:10.5]} 31... Nxc2 {[%clk
0:00:57]} 32. a4 {[%clk 0:01:04.2]} 32... Ne1 {[%clk 0:00:54.2]} 33. f3 {[%clk
0:00:50.2]} 33... Nd3 {[%clk 0:00:43.9]} 34. a5 {[%clk 0:00:47.9]} 34... Rc1+
{[%clk 0:00:44.6]} 35. Kh2 {[%clk 0:00:49.1]} 35... Nc5 {[%clk 0:00:45.7]} 36.
Rc7 {[%clk 0:00:47.6]} 36... Rc4 {[%clk 0:00:41.8]} 37. Ra2 {[%clk 0:00:45.6]}
37... Ke8 {[%clk 0:00:31.7]} 38. Ra3 {[%clk 0:00:45.1]} 38... Kd8 {[%clk
0:00:30.6]} 39. Ra7 {[%clk 0:00:45.5]} 39... Rb4 {[%clk 0:00:26.1]} 40. a6
{[%clk 0:00:43.3]} 40... Rb6 {[%clk 0:00:26.5]} 41. h4 {[%clk 0:00:38.5]} 41...
Bc6 {[%clk 0:00:20.6]} 42. Rc3 {[%clk 0:00:38.8]} 42... Nxa6 {[%clk 0:00:20.8]}
43. Rd3+ {[%clk 0:00:39.1]} 43... Bd5 {[%clk 0:00:22.1]} 44. g4 {[%clk
0:00:38.8]} 44... hxg4 {[%clk 0:00:22.8]} 45. fxg4 {[%clk 0:00:40.1]} 45... Nc5
{[%clk 0:00:24.3]} 46. Rd2 {[%clk 0:00:39]} 46... Ne4 {[%clk 0:00:25]} 47. Rc2
{[%clk 0:00:36.8]} 47... Ke8 {[%clk 0:00:25.3]} 48. h5 {[%clk 0:00:37.3]} 48...
gxh5 {[%clk 0:00:24.5]} 49. gxh5 {[%clk 0:00:39.2]} 49... Nf6 {[%clk 0:00:25]}
50. Ra8+ {[%clk 0:00:40.1]} 50... Kf7 {[%clk 0:00:25.8]} 51. h6 {[%clk
0:00:41.1]} 51... Kg6 {[%clk 0:00:26.8]} 52. Rg2+ {[%clk 0:00:40.7]} 52... Bxg2
{[%clk 0:00:27.5]} 53. h7 {[%clk 0:00:40.6]} 53... Nxh7 {[%clk 0:00:28]} 54.
Kxg2 {[%clk 0:00:41.7]} 54... Ng5 {[%clk 0:00:28.9]} 55. Kg3 {[%clk 0:00:43]}
55... Rb3+ {[%clk 0:00:28.3]} 56. Kg4 {[%clk 0:00:43.4]} 56... Rb4+ {[%clk
0:00:29.7]} 57. Kg3 {[%clk 0:00:43.7]} 57... Ne4+ {[%clk 0:00:30.4]} 58. Kf4
{[%clk 0:00:44.6]} 58... Nf6+ {[%clk 0:00:25.3]} 59. Kf3 {[%clk 0:00:41.9]}
59... Kf5 {[%clk 0:00:24.3]} 60. Ra3 {[%clk 0:00:40.3]} 60... e5 {[%clk
0:00:23.5]} 61. Kg3 {[%clk 0:00:41.1]} 61... Rg4+ {[%clk 0:00:23.8]} 62. Kh3
{[%clk 0:00:42.2]} 62... Rf4 {[%clk 0:00:25.2]} 63. Kg3 {[%clk 0:00:42]} 63...
Ne4+ {[%clk 0:00:25.2]} 64. Kh3 {[%clk 0:00:42.2]} 64... Ng5+ {[%clk 0:00:25.9]}
65. Kg3 {[%clk 0:00:43]} 65... Rg4+ {[%clk 0:00:24.2]} 66. Kh2 {[%clk 0:00:41]}
66... Kf4 {[%clk 0:00:24.5]} 67. Ra4+ {[%clk 0:00:41.8]} 67... e4 {[%clk
0:00:25.5]} 68. Ra7 {[%clk 0:00:41.2]} 68... Nf3+ {[%clk 0:00:26.5]} 69. Kh3
{[%clk 0:00:39.6]} 69... Rg3# {[%clk 0:00:27.5]} 0-1

[Event "*** Titled Tuesday 3|2 Blitz"]
[Site "Chess.com"]
[Date "2015.06.02"]
[Round "1"]
[White "only_defence"]
[Black "GasconJR"]
[Result "1/2-1/2"]
[WhiteElo "1948"]
[BlackElo "2298"]
[TimeControl "180+2"]
[EndTime "11:11:21 PDT"]
[Termination "Game drawn by repetition"]

1. d4 {[%clk 0:03:01.4]} 1... Nf6 {[%clk 0:02:58.1]} 2. c4 {[%clk 0:02:59.9]}
2... e6 {[%clk 0:02:54.4]} 3. Nc3 {[%clk 0:02:55.5]} 3... Bb4 {[%clk 0:02:53.4]}
4. e3 {[%clk 0:02:55.4]} 4... O-O {[%clk 0:02:53.1]} 5. Ne2 {[%clk 0:02:53.9]}
5... Re8 {[%clk 0:02:53.5]} 6. a3 {[%clk 0:02:53.4]} 6... Bf8 {[%clk 0:02:54.2]}
7. Nf4 {[%clk 0:02:54]} 7... d5 {[%clk 0:02:54.6]} 8. Bd3 {[%clk 0:02:54.5]}
8... dxc4 {[%clk 0:02:35.2]} 9. Bxc4 {[%clk 0:02:53.8]} 9... c5 {[%clk
0:02:16.5]} 10. O-O {[%clk 0:02:30.9]} 10... a6 {[%clk 0:02:11.6]} 11. a4 {[%clk
0:02:27.7]} 11... cxd4 {[%clk 0:02:09.7]} 12. exd4 {[%clk 0:02:27.7]} 12... Nc6
{[%clk 0:01:55]} 13. d5 {[%clk 0:02:26.1]} 13... exd5 {[%clk 0:01:47.8]} 14.
Nfxd5 {[%clk 0:02:24.9]} 14... Nxd5 {[%clk 0:01:45]} 15. Bxd5 {[%clk 0:02:23.7]}
15... Be6 {[%clk 0:01:31.8]} 16. Be3 {[%clk 0:02:07.6]} 16... Bxd5 {[%clk
0:01:23.5]} 17. Qxd5 {[%clk 0:02:05.8]} 17... Qc8 {[%clk 0:01:03.8]} 18. Rfd1
{[%clk 0:01:48.2]} 18... Nb4 {[%clk 0:01:00.8]} 19. Qb3 {[%clk 0:01:47.1]} 19...
Qf5 {[%clk 0:00:55]} 20. Ne2 {[%clk 0:01:36.7]} 20... Nc2 {[%clk 0:00:53.5]} 21.
Rac1 {[%clk 0:01:22.2]} 21... Nxe3 {[%clk 0:00:54.5]} 22. fxe3 {[%clk
0:01:24.1]} 22... Bc5 {[%clk 0:00:54.6]} 23. Nd4 {[%clk 0:01:13.7]} 23... Qg5
{[%clk 0:00:55.6]} 24. Rc3 {[%clk 0:01:05.2]} 24... Rad8 {[%clk 0:00:52.9]} 25.
Rcd3 {[%clk 0:01:04.7]} 25... h5 {[%clk 0:00:42.5]} 26. h3 {[%clk 0:00:47.8]}
26... Qd5 {[%clk 0:00:19.3]} 27. Qxd5 {[%clk 0:00:41.7]} 27... Rxd5 {[%clk
0:00:20.1]} 28. Kf2 {[%clk 0:00:37.6]} 28... Kf8 {[%clk 0:00:21]} 29. R1d2
{[%clk 0:00:26]} 29... h4 {[%clk 0:00:20.9]} 30. Nf3 {[%clk 0:00:26.8]} 30...
Rxd3 {[%clk 0:00:21.5]} 31. Rxd3 {[%clk 0:00:27.9]} 31... Re4 {[%clk 0:00:20.4]}
32. Rc3 {[%clk 0:00:26.8]} 32... b6 {[%clk 0:00:21.1]} 33. b3 {[%clk 0:00:28.2]}
33... Ke7 {[%clk 0:00:20.9]} 34. Rd3 {[%clk 0:00:28.6]} 34... f6 {[%clk
0:00:21.8]} 35. Nh2 {[%clk 0:00:27.8]} 35... g5 {[%clk 0:00:22.8]} 36. Kf3
{[%clk 0:00:28.7]} 36... f5 {[%clk 0:00:23.8]} 37. Nf1 {[%clk 0:00:25.8]} 37...
Ke6 {[%clk 0:00:23.8]} 38. Nd2 {[%clk 0:00:26.9]} 38... Re5 {[%clk 0:00:25.2]}
39. Nc4 {[%clk 0:00:26.3]} 39... Rd5 {[%clk 0:00:26.5]} 40. Ke2 {[%clk
0:00:27.8]} 40... b5 {[%clk 0:00:25.5]} 41. axb5 {[%clk 0:00:25]} 41... axb5
{[%clk 0:00:26.8]} 42. Nd2 {[%clk 0:00:26.5]} 42... g4 {[%clk 0:00:24.2]} 43.
Nf1 {[%clk 0:00:18.9]} 43... Bd6 {[%clk 0:00:17.4]} 44. Nd2 {[%clk 0:00:17.5]}
44... Ke5 {[%clk 0:00:18.1]} 45. e4 {[%clk 0:00:14.8]} 45... Rxd3 {[%clk
0:00:16.9]} 46. Kxd3 {[%clk 0:00:16.7]} 46... Kf4 {[%clk 0:00:12]} 47. exf5
{[%clk 0:00:17.2]} 47... Kxf5 {[%clk 0:00:10.7]} 48. Ne4 {[%clk 0:00:15]} 48...
Be7 {[%clk 0:00:09.9]} 49. Nc3 {[%clk 0:00:15.5]} 49... Kf4 {[%clk 0:00:08.3]}
50. Nd5+ {[%clk 0:00:14.6]} 50... Kg3 {[%clk 0:00:09]} 51. hxg4 {[%clk
0:00:16.1]} 51... Bg5 {[%clk 0:00:08.8]} 52. Ne3 {[%clk 0:00:15.8]} 52... Bxe3
{[%clk 0:00:07.2]} 53. Kxe3 {[%clk 0:00:17.7]} 53... Kxg4 {[%clk 0:00:08.7]} 54.
Ke2 {[%clk 0:00:17.9]} 54... b4 {[%clk 0:00:10.1]} 55. Ke1 {[%clk 0:00:17.1]}
55... Kg3 {[%clk 0:00:11]} 56. Kf1 {[%clk 0:00:18.4]} 56... Kf4 {[%clk
0:00:11.9]} 57. Kf2 {[%clk 0:00:19.7]} 57... Ke4 {[%clk 0:00:12.5]} 58. Ke2
{[%clk 0:00:21.1]} 58... Kd4 {[%clk 0:00:13.1]} 59. Kd2 {[%clk 0:00:22.5]} 59...
Ke4 {[%clk 0:00:12.7]} 60. Ke2 {[%clk 0:00:23.9]} 60... Kf4 {[%clk 0:00:14.1]}
61. Kf2 {[%clk 0:00:25.1]} 61... Kg4 {[%clk 0:00:15.4]} 62. Kf1 {[%clk
0:00:26.4]} 62... Kg3 {[%clk 0:00:16]} 63. Kg1 {[%clk 0:00:27.7]} 63... Kf4
{[%clk 0:00:14.7]} 64. Kf2 {[%clk 0:00:28.6]} 64... Ke4 {[%clk 0:00:16.1]} 65.
Ke2 {[%clk 0:00:29.8]} 65... Kd4 {[%clk 0:00:17.6]} 66. Kd2 {[%clk 0:00:31.2]}
66... Ke4 {[%clk 0:00:18.4]} 67. Ke2 {[%clk 0:00:32.6]} 67... Kf4 {[%clk
0:00:19.7]} 68. Kf2 {[%clk 0:00:34.1]} 1/2-1/2

[Event "*** Titled Tuesday 3|2 Blitz"]
[Site "Chess.com"]
[Date "2015.06.02"]
[Round "1"]
[White "ChadaevNikolay"]
[Black "kleinebeer98"]
[Result "1/2-1/2"]
[WhiteElo "2643"]
[BlackElo "2273"]
[TimeControl "180+2"]
[EndTime "11:11:44 PDT"]
[Termination "Game drawn - insufficient material"]

1. e4 {[%clk 0:02:59.7]} 1... c5 {[%clk 0:02:59.6]} 2. Nf3 {[%clk 0:02:59.9]}
2... d6 {[%clk 0:03:00.6]} 3. c3 {[%clk 0:02:59.6]} 3... Nf6 {[%clk 0:03:00.5]}
4. Be2 {[%clk 0:03:00.2]} 4... Nc6 {[%clk 0:02:59.9]} 5. d4 {[%clk 0:02:59.8]}
5... cxd4 {[%clk 0:03:00.1]} 6. cxd4 {[%clk 0:03:00.7]} 6... d5 {[%clk
0:03:01.4]} 7. e5 {[%clk 0:03:01.2]} 7... Ne4 {[%clk 0:03:02.3]} 8. O-O {[%clk
0:03:01]} 8... g6 {[%clk 0:03:00]} 9. Nc3 {[%clk 0:03:01.4]} 9... Nxc3 {[%clk
0:02:59.5]} 10. bxc3 {[%clk 0:03:02.3]} 10... Bg7 {[%clk 0:02:58.8]} 11. Re1
{[%clk 0:03:02.8]} 11... O-O {[%clk 0:02:59.5]} 12. Bd3 {[%clk 0:03:02]} 12...
Bg4 {[%clk 0:02:56.2]} 13. h3 {[%clk 0:02:52.5]} 13... Bxf3 {[%clk 0:02:53.3]}
14. Qxf3 {[%clk 0:02:54.4]} 14... Rc8 {[%clk 0:02:52]} 15. h4 {[%clk 0:02:54.4]}
15... Na5 {[%clk 0:02:48.8]} 16. Bd2 {[%clk 0:02:54]} 16... Nc4 {[%clk
0:02:47.5]} 17. Bg5 {[%clk 0:02:54.4]} 17... h6 {[%clk 0:02:27.8]} 18. Bc1
{[%clk 0:02:35.9]} 18... e6 {[%clk 0:02:16.8]} 19. h5 {[%clk 0:02:35]} 19... g5
{[%clk 0:02:12.3]} 20. Rb1 {[%clk 0:02:35.2]} 20... b6 {[%clk 0:02:09.2]} 21.
Bc2 {[%clk 0:02:35.9]} 21... f5 {[%clk 0:01:42.9]} 22. exf6 {[%clk 0:02:36.5]}
22... Qxf6 {[%clk 0:01:44.2]} 23. Qxf6 {[%clk 0:02:29.1]} 23... Rxf6 {[%clk
0:01:46.1]} 24. Ba4 {[%clk 0:02:22.5]} 24... Rcf8 {[%clk 0:01:34.8]} 25. Re2
{[%clk 0:02:20.6]} 25... Kf7 {[%clk 0:01:32.9]} 26. Bc2 {[%clk 0:02:15.8]} 26...
Ke7 {[%clk 0:01:32.3]} 27. a4 {[%clk 0:02:16]} 27... Rc8 {[%clk 0:01:32.2]} 28.
Bd3 {[%clk 0:02:14.8]} 28... Kd7 {[%clk 0:01:30.8]} 29. g3 {[%clk 0:02:10.8]}
29... Bf8 {[%clk 0:01:28.7]} 30. Kg2 {[%clk 0:02:09.2]} 30... Nd6 {[%clk
0:01:19.1]} 31. Bd2 {[%clk 0:02:07]} 31... Nc4 {[%clk 0:01:19.6]} 32. Be1 {[%clk
0:02:06.7]} 32... Bd6 {[%clk 0:01:18]} 33. Rb5 {[%clk 0:02:04.5]} 33... Na5
{[%clk 0:01:16.5]} 34. Re3 {[%clk 0:01:57.9]} 34... Be7 {[%clk 0:01:10.8]} 35.
Rb1 {[%clk 0:01:53.6]} 35... Bd6 {[%clk 0:01:11]} 36. Be2 {[%clk 0:01:52.9]}
36... Nc4 {[%clk 0:01:11]} 37. Rd3 {[%clk 0:01:47.1]} 37... Rcf8 {[%clk
0:01:11]} 38. Bg4 {[%clk 0:01:46.9]} 38... Kc6 {[%clk 0:01:11.4]} 39. Ra1 {[%clk
0:01:45.2]} 39... e5 {[%clk 0:01:12]} 40. Ra2 {[%clk 0:01:28.8]} 40... e4 {[%clk
0:01:07.3]} 41. Rd1 {[%clk 0:01:29.3]} 41... e3 {[%clk 0:01:08.9]} 42. Rd3
{[%clk 0:01:16]} 42... exf2 {[%clk 0:01:03.4]} 43. Rxf2 {[%clk 0:01:12.9]} 43...
Rxf2+ {[%clk 0:01:01.9]} 44. Bxf2 {[%clk 0:01:13.8]} 44... b5 {[%clk 0:01:00.6]}
45. axb5+ {[%clk 0:01:13.4]} 45... Kxb5 {[%clk 0:01:02.5]} 46. Bf3 {[%clk
0:01:12.7]} 46... Kc6 {[%clk 0:01:01]} 47. Rd1 {[%clk 0:01:11]} 47... a5 {[%clk
0:01:00.7]} 48. Ra1 {[%clk 0:01:11.9]} 48... Ra8 {[%clk 0:01:00.4]} 49. Bd1
{[%clk 0:01:12.7]} 49... Nb2 {[%clk 0:00:58.2]} 50. Bc2 {[%clk 0:01:11]} 50...
a4 {[%clk 0:00:58.4]} 51. Kf3 {[%clk 0:01:11.6]} 51... a3 {[%clk 0:00:58.6]} 52.
Ke2 {[%clk 0:01:12.2]} 52... Nc4 {[%clk 0:00:55.8]} 53. Bg6 {[%clk 0:01:09]}
53... Rb8 {[%clk 0:00:53.7]} 54. Be1 {[%clk 0:01:06.9]} 54... Rb2+ {[%clk
0:00:54]} 55. Kf3 {[%clk 0:01:05.9]} 55... Nd2+ {[%clk 0:00:40]} 56. Bxd2 {[%clk
0:01:02.4]} 56... Rxd2 {[%clk 0:00:41.9]} 57. Kg4 {[%clk 0:00:57.6]} 57... a2
{[%clk 0:00:37.7]} 58. Be8+ {[%clk 0:00:57.6]} 58... Kb6 {[%clk 0:00:38]} 59.
Ba4 {[%clk 0:00:54.6]} 59... Rd3 {[%clk 0:00:39.1]} 60. Bb3 {[%clk 0:00:51.4]}
60... Rxc3 {[%clk 0:00:39]} 61. Bxd5 {[%clk 0:00:52.1]} 61... Rxg3+ {[%clk
0:00:39.9]} 62. Kf5 {[%clk 0:00:53.2]} 62... Rd3 {[%clk 0:00:39.4]} 63. Rxa2
{[%clk 0:00:52.1]} 63... Rxd4 {[%clk 0:00:40.5]} 64. Rb2+ {[%clk 0:00:49]} 64...
Kc5 {[%clk 0:00:40.6]} 65. Ba8 {[%clk 0:00:46.9]} 65... g4 {[%clk 0:00:37.2]}
66. Kg6 {[%clk 0:00:46.8]} 66... Bf4 {[%clk 0:00:37.9]} 67. Rc2+ {[%clk
0:00:47.2]} 67... Kd6 {[%clk 0:00:38]} 68. Bg2 {[%clk 0:00:46.8]} 68... Bg5
{[%clk 0:00:37.7]} 69. Ra2 {[%clk 0:00:46.5]} 69... Ke5 {[%clk 0:00:38.8]} 70.
Re2+ {[%clk 0:00:47.1]} 70... Kf4 {[%clk 0:00:39.8]} 71. Ra2 {[%clk 0:00:47.8]}
71... Kg3 {[%clk 0:00:40.7]} 72. Ba8 {[%clk 0:00:48.4]} 72... Rf4 {[%clk
0:00:40.6]} 73. Bb7 {[%clk 0:00:48.5]} 73... Rf6+ {[%clk 0:00:41]} 74. Kg7
{[%clk 0:00:49.4]} 74... Rf2 {[%clk 0:00:38.9]} 75. Ra5 {[%clk 0:00:47.6]} 75...
Kh2 {[%clk 0:00:36.9]} 76. Rxg5 {[%clk 0:00:45.4]} 76... hxg5 {[%clk 0:00:27.2]}
77. h6 {[%clk 0:00:46.5]} 77... Kg3 {[%clk 0:00:25.3]} 78. h7 {[%clk 0:00:41.5]}
78... Rh2 {[%clk 0:00:26.5]} 79. h8=Q {[%clk 0:00:32.7]} 79... Rxh8 {[%clk
0:00:27]} 80. Kxh8 {[%clk 0:00:34.6]} 80... Kf2 {[%clk 0:00:27.3]} 81. Kg7
{[%clk 0:00:35.1]} 81... g3 {[%clk 0:00:28.2]} 82. Kf6 {[%clk 0:00:36.2]} 82...
g2 {[%clk 0:00:28.5]} 83. Bxg2 {[%clk 0:00:36.5]} 83... Kxg2 {[%clk 0:00:30.4]}
84. Kxg5 {[%clk 0:00:38]} 1/2-1/2